fUST/lending_fUST_20250624
["ID","MTS","AMOUNT","RATE_DAILY","PERIOD"]
[367212048,1750702290916,-1321.89,0.00022321,2]
[367212049,1750702290925,-739.43,0.00022321,2]
[367212050,1750702290935,-460.0,0.00022321,2]
[367212051,1750702290949,-460.0,0.00022321,2]
[367212052,1750702290959,-487.28,0.00022321,2]
[367212053,1750702290968,-460.0,0.00022321,2]
[367212054,1750702290979,-816.19,0.00022321,2]
[367212055,1750702290989,-1455.95,0.00022321,2]
[367212056,1750702290999,-1159.89,0.00022321,2]
[367212057,1750702291009,-893.45,0.00022321,2]
[367212058,1750702291018,-3219.82,0.00022321,2]
[367212059,1750702291028,-460.0,0.00022321,2]
[367212060,1750702291038,-492.39,0.00022321,2]
[367212061,1750702291048,-1312.29,0.00022321,2]
[367212062,1750702291059,-850.61,0.00022321,2]
[367212063,1750702291068,-2063.95,0.00022321,2]
[367212064,1750702291078,-468.72,0.00022321,2]
[367212065,1750702291087,-460.0,0.00022321,2]
[367212066,1750702291097,-571.37,0.00022321,2]
[367212067,1750702291107,-1310.44,0.00022321,2]
[367212068,1750702291116,-2085.6,0.00022321,2]
[367212069,1750702291128,-460.0,0.00022321,2]
[367212070,1750702291138,-941.77,0.00022321,2]
[367212071,1750702291148,-982.4,0.00022321,2]
[367212072,1750702291157,-585.79,0.00022321,2]
[367212073,1750702291167,-460.0,0.00022321,2]
[367212074,1750702291177,-770.98,0.00022321,2]
[367212075,1750702291186,-704.38,0.00022321,2]
[367212076,1750702291197,-655.58,0.00022321,2]
[367212077,1750702291207,-556.65,0.00022321,2]
[367212078,1750702291217,-460.0,0.00022321,2]
[367212079,1750702291226,-500.0,0.00022321,2]
[367212080,1750702291235,-460.0,0.00022323,2]
[367212081,1750702291245,-532.05,0.00022323,2]
[367212082,1750702291255,-3396.84,0.00022323,2]
[367212083,1750702291264,-908.56,0.00022323,2]
[367212084,1750702291274,-648.74,0.00022323,2]
[367212085,1750702291284,-657.85,0.00022323,2]
[367212086,1750702291297,-1178.32,0.00022323,2]
[367212087,1750702291307,-2051.07,0.00022323,2]
[367212088,1750702291317,-15965.38,0.00022323,2]
[367212089,1750702291326,-2376.67,0.00022323,2]
[367212090,1750702291335,-460.0,0.00022323,2]
[367212091,1750702291345,-1259.65,0.00022323,2]
[367212092,1750702291354,-2831.83,0.00022323,2]
[367212093,1750702291364,-6457.57,0.00022323,2]
[367212094,1750702291374,-1904.77,0.00022323,2]
[367212095,1750702291384,-655.41,0.00022324,2]
[367212096,1750702291393,-591.26,0.00022324,2]
[367212097,1750702291402,-460.0,0.00022324,2]
[367212098,1750702291411,-625.48,0.00022325,2]
[367212099,1750702291421,-474.35,0.00022326,2]
[367212100,1750702291431,-724.42,0.00022326,2]
[367212101,1750702291442,-585.5,0.00022326,2]
[367212102,1750702291452,-1687.04,0.00022326,2]
[367212103,1750702291462,-900.91,0.00022326,2]
[367212104,1750702291471,-1661.82,0.00022326,2]
[367212105,1750702291481,-981.17,0.00022326,2]
[367212106,1750702291490,-856.33,0.00022326,2]
[367212107,1750702291499,-1474.59,0.00022326,2]
[367212108,1750702291508,-460.0,0.00022326,2]
[367212109,1750702291518,-460.0,0.00022326,2]
[367212110,1750702291527,-1301.19,0.00022326,2]
[367212111,1750702291537,-138.32210142,0.00022326,2]
[367212112,1750702291550,-369.71789858,0.00022326,2]
[367212113,1750702291560,-497.22629364,0.00022326,2]
[367212114,1750702291570,-929.23,0.00022326,2]
[367212115,1750702291580,-735.13,0.00022326,2]
[367212116,1750702291589,-587.75,0.00022326,2]
[367212117,1750702291599,-2121.29,0.00022326,2]
[367212118,1750702291608,-927.39,0.00022326,2]
[367212119,1750702291618,-594.5,0.00022326,2]
[367212120,1750702291628,-681.19,0.00022326,2]
[367212121,1750702291638,-2543.97,0.00022326,2]
[367212122,1750702291647,-460.0,0.00022326,2]
[367212123,1750702291657,-1189.72,0.00022326,2]
[367212124,1750702291666,-1227.09,0.00022326,2]
[367212125,1750702291676,-773.52,0.00022326,2]
[367212126,1750702291685,-505.38,0.00022326,2]
[367212127,1750702291697,-1234.97,0.00022326,2]
[367212128,1750702291706,-7516.55,0.00022326,2]
[367212129,1750702291715,-4782.92,0.00022326,2]
[367212130,1750702291726,-2097.54,0.00022326,2]
[367212131,1750702291735,-1077.35,0.00022326,2]
[367212132,1750702291745,-794.81,0.00022326,2]
[367212133,1750702291755,-560.47,0.00022326,2]
[367212134,1750702291765,-4182.16,0.00022326,2]
[367212135,1750702291775,-791.3,0.00022326,2]
[367212136,1750702291785,-5445.98,0.00022326,2]
[367212137,1750702291795,-606.04,0.00022326,2]
[367212138,1750702291805,-460.0,0.00022326,2]
[367212139,1750702291815,-1050.77,0.00022326,2]
[367212140,1750702291824,-1341.05,0.00022326,2]
[367212141,1750702291833,-2436.47261566,0.00022326,2]
[367212142,1750702291845,-6847.00738434,0.00022326,2]
[367212143,1750702291856,-460.0,0.00022326,2]
[367212144,1750702291865,-1949.77,0.00022326,2]
[367212145,1750702291875,-2323.85,0.00022327,2]
[367212146,1750702291885,-705.33,0.00022327,2]
[367212147,1750702291895,-919.28,0.00022327,2]
[367212148,1750702291904,-460.0,0.00022327,2]
[367212149,1750702291914,-460.0,0.00022327,2]
[367212150,1750702291923,-460.0,0.00022327,2]
[367212151,1750702291933,-662.4,0.00022327,2]
[367212152,1750702291943,-460.0,0.00022327,2]
[367212153,1750702291953,-503.42,0.00022327,2]
[367212154,1750702291963,-552.77061566,0.00022327,2]
[367212155,1750702291974,-121.87938434,0.00022327,2]
[367212156,1750702291984,-498.37,0.00022328,2]
[367212157,1750702291993,-460.0,0.00022328,2]
[367212158,1750702292003,-460.0,0.00022328,2]
[367212159,1750702292012,-493.35,0.00022328,2]
[367212160,1750702292021,-460.0,0.00022328,2]
[367212161,1750702292031,-715.51,0.00022328,2]
[367212162,1750702292041,-1726.48,0.00022328,2]
[367212163,1750702292050,-750.22829566,0.00022328,2]
[367212164,1750702292067,-174.31170434,0.00022328,2]
[367212165,1750702292076,-460.0,0.00022328,2]
[367212166,1750702292087,-460.0,0.00022328,2]
[367212167,1750702292096,-460.0,0.00022328,2]
[367212168,1750702292106,-460.0,0.00022328,2]
[367212169,1750702292116,-499.53,0.00022328,2]
[367212170,1750702292126,-460.0,0.00022328,2]
[367212171,1750702292135,-714.86,0.00022328,2]
[367212172,1750702292145,-460.0,0.00022328,2]
[367212173,1750702292154,-646.96,0.00022328,2]
[367212174,1750702292164,-819.18,0.00022328,2]
[367212175,1750702292174,-590.17,0.00022328,2]
[367212176,1750702292183,-836.54,0.00022328,2]
[367212177,1750702292194,-460.0,0.00022328,2]
[367212178,1750702292204,-176.66188115,0.00022328,2]
[367212179,1750702292214,-1511.56,0.00022328,2]
[367212180,1750702292224,-460.0,0.00022328,2]
[367212181,1750702292233,-546.46286951,0.00022328,2]
[367212182,1750702292242,-460.0,0.00022328,2]
[367212183,1750702292251,-460.0,0.00022328,2]
[367212184,1750702292261,-460.0,0.00022328,2]
[367212185,1750702292271,-707.3,0.00022328,2]
[367212186,1750702292285,-735.42,0.00022328,2]
[367212187,1750702292294,-1601.96,0.00022328,2]
[367212188,1750702292303,-460.0,0.00022328,2]
[367212189,1750702292314,-460.0,0.00022328,2]
[367212190,1750702292324,-278.98,0.00022329,2]
[367212191,1750702292333,-976.76,0.0002233,2]
[367212192,1750702292343,-1385.55,0.0002233,2]
[367212193,1750702292354,-3985.75,0.0002233,2]
[367212194,1750702292364,-541.28,0.0002233,2]
[367212195,1750702292374,-1120.09,0.0002233,2]
[367212196,1750702292384,-857.29,0.0002233,2]
[367212197,1750702292393,-460.0,0.0002233,2]
[367212198,1750702292403,-518.26,0.0002233,2]
[367212199,1750702292413,-758.45,0.0002233,2]
[367212200,1750702292422,-460.0,0.0002233,2]
[367212201,1750702292432,-745.09,0.0002233,2]
[367212202,1750702292442,-897.24,0.0002233,2]
[367212203,1750702292452,-369.27939883,0.0002233,2]
[367212204,1750702292462,-460.0,0.0002233,2]
[367212205,1750702292473,-1055.93,0.0002233,2]
[367212206,1750702292483,-996.88,0.0002233,2]
[367212207,1750702292493,-785.22,0.0002233,2]
[367212208,1750702292503,-648.84,0.0002233,2]
[367212209,1750702292513,-842.28,0.0002233,2]
[367212210,1750702292523,-1150.01,0.0002233,2]
[367212211,1750702292533,-460.0,0.00022332,2]
[367212212,1750702292543,-730.14,0.00022332,2]
[367212213,1750702292553,-592.57,0.00022332,2]
[367212214,1750702292564,-460.0,0.00022332,2]
[367212215,1750702292742,-727.02,0.00022332,2]
[367212216,1750702292752,-460.0,0.00022332,2]
[367212217,1750702292762,-460.0,0.00022332,2]
[367212218,1750702292772,-765.94864103,0.00022368,2]
[367212219,1750702292782,-5000.0,0.00022384,2]
[367212220,1750702292791,-152.636,0.0002239,2]
[367212221,1750702292800,-150.0,0.0002239,2]
[367212222,1750702292809,-200.225,0.0002239,2]
[367212223,1750702292819,-242.505,0.0002239,2]
[367212224,1750702292830,-150.0,0.0002239,2]
[367212225,1750702292840,-150.0,0.0002239,2]
[367212226,1750702292851,-150.0,0.0002239,2]
[367212227,1750702292861,-250.0,0.000224,2]
[367212228,1750702292871,-250.0,0.000224,2]
[367212229,1750702292881,-250.0,0.000224,2]
[367212230,1750702292891,-250.0,0.000224,2]
[367212231,1750702292901,-250.0,0.000224,2]
[367212232,1750702292911,-577.79,0.00022402,2]
[367212233,1750702292921,-553.72,0.00022402,2]
[367212234,1750702292931,-653.33,0.00022402,2]
[367212235,1750702292941,-677.47,0.00022402,2]
[367212236,1750702292953,-934.6,0.00022402,2]
[367212237,1750702292963,-928.71,0.00022402,2]
[367212238,1750702292972,-6794.43,0.00022402,2]
[367212239,1750702292982,-427.17865675,0.00022402,2]
[367212240,1750702292992,-460.0,0.00022402,2]
[367212241,1750702293002,-586.68,0.00022402,2]
[367212242,1750702293013,-674.21,0.00022402,2]
[367212243,1750702293023,-6749.54,0.00022402,2]
[367212244,1750702293033,-460.0,0.00022402,2]
[367212245,1750702293043,-460.0,0.00022402,2]
[367212246,1750702293052,-1068.57,0.00022402,2]
[367212247,1750702293062,-168.0,0.00022402,2]
[367212248,1750702293071,-460.0,0.00022403,2]
[367212249,1750702293083,-1342.47,0.00022403,2]
[367212250,1750702293093,-460.0,0.00022403,2]
[367212251,1750702293104,-554.93,0.00022403,2]
[367212252,1750702293114,-606.87,0.00022403,2]
[367212253,1750702293124,-543.92,0.00022403,2]
[367212254,1750702293135,-486.25,0.00022403,2]
[367212255,1750702293145,-829.58,0.00022403,2]
[367212256,1750702293155,-460.0,0.00022403,2]
[367212257,1750702293165,-460.0,0.00022403,2]
[367212258,1750702293175,-5481.59,0.00022403,2]
[367212259,1750702293185,-1991.7,0.00022403,2]
[367212260,1750702293196,-585.11,0.00022403,2]
[367212261,1750702293206,-1023.28,0.00022403,2]
[367212262,1750702293217,-4573.78,0.00022403,2]
[367212263,1750702293227,-514.23,0.00022403,2]
[367212264,1750702293238,-4501.74,0.00022403,2]
[367212265,1750702293249,-7625.39,0.00022403,2]
[367212266,1750702293259,-1430.08,0.00022403,2]
[367212267,1750702293269,-1777.53,0.00022403,2]
[367212268,1750702293280,-7632.03,0.00022403,2]
[367212269,1750702293291,-568.48,0.00022403,2]
[367212270,1750702293302,-3044.38,0.00022403,2]
[367212271,1750702293311,-2095.8,0.00022403,2]
[367212272,1750702293322,-460.0,0.00022403,2]
[367212273,1750702293333,-168.0,0.00022445,2]
[367212274,1750702293343,-512.0,0.00022451,4]
[367212275,1750702293354,-223.47,0.0002246,2]
[367212276,1750702293363,-500.0,0.00022465,2]
[367212277,1750702293375,-300.0,0.00022466,2]
[367212278,1750702293386,-250.0,0.00022466,2]
[367212279,1750702293396,-420.0,0.0002249,2]
[367212280,1750702293406,-1927.21230948,0.00022495,2]
[367212281,1750702293416,-700.0,0.000225,14]
[367212282,1750702293426,-3000.0,0.000225,2]
[367212283,1750702293436,-168.0,0.00022507,2]
[367212284,1750702293447,-3000.0,0.0002251,2]
[367212285,1750702293457,-3000.0,0.0002252,2]
[367212286,1750702293468,-168.0,0.00022527,2]
[367212287,1750702293478,-3000.0,0.0002253,2]
[367212288,1750702293488,-3000.0,0.0002254,2]
[367212289,1750702293498,-168.0,0.00022543,2]
[367212290,1750702293509,-3000.0,0.0002255,2]
[367212291,1750702293519,-3000.0,0.0002256,2]
[367212292,1750702293529,-3000.0,0.0002257,2]
[367212293,1750702293539,-3000.0,0.0002258,2]
[367212294,1750702293549,-3000.0,0.0002259,2]
[367212295,1750702293561,-604.38,0.00022595,2]
[367212296,1750702293571,-698.94,0.00022595,2]
[367212297,1750702293581,-620.81,0.00022595,2]
[367212298,1750702293591,-576.95,0.00022595,2]
[367212299,1750702293600,-621.2,0.00022595,2]
[367212300,1750702293611,-526.53,0.00022595,2]
[367212301,1750702293621,-517.27,0.00022595,2]
[367212302,1750702293631,-460.0,0.00022595,2]
[367212303,1750702293640,-460.0,0.00022595,2]
[367212304,1750702293652,-1387.87,0.00022595,2]
[367212305,1750702293662,-900.37,0.00022595,2]
[367212306,1750702293672,-562.89,0.00022595,2]
[367212307,1750702293681,-1989.83,0.00022595,2]
[367212308,1750702293692,-488.85,0.00022595,2]
[367212309,1750702293704,-852.85,0.00022595,2]
[367212310,1750702293714,-525.2,0.00022595,2]
[367212311,1750702293724,-460.0,0.00022595,2]
[367212312,1750702293734,-696.37,0.00022595,2]
[367212313,1750702293744,-460.0,0.00022595,2]
[367212314,1750702293754,-245.25864833,0.00022595,2]
[367212315,1750702293768,-302.18135167,0.00022595,2]
[367212316,1750702293779,-541.82364833,0.00022595,2]
[367212317,1750702294271,-306.38305132,0.00019388,2]
[367212318,1750702294282,-460.0,0.00019388,2]
[367212319,1750702294294,-460.0,0.00019581,2]
[367212320,1750702294304,-460.0,0.00019581,2]
[367212321,1750702294314,-460.0,0.00019581,2]
[367212322,1750702294325,-460.0,0.00019586,2]
[367212323,1750702294335,-823.16545002,0.00019588,2]
[367212324,1750702294345,-45316.37200953,0.00019656,2]
[367212325,1750702294356,-6225.39041383,0.00019656,2]
[367212326,1750702295883,4626.0,0.0001911,2]
[367212327,1750702314013,219.901368,0.00018732,2]
[367212328,1750702332554,290.0710033,0.00018481,2]
[367212329,1750702346626,1438.11212746,0.0001911,2]
[367212330,1750702362649,201.53758764,0.00019078,2]
[367212331,1750702446693,-301.76674661,0.00019284,2]
[367212332,1750702446721,-301.76674657,0.00019284,2]
[367212333,1750702446749,-301.76674657,0.00019285,2]
[367212334,1750702446775,-301.76674657,0.00019285,2]
[367212335,1750702446798,-217.64259151,0.00019285,2]
[367212336,1750702446819,-838.50949879,0.00019285,2]
[367212337,1750702446850,-301.76674657,0.00019285,2]
[367212338,1750702446871,-1823.01417681,0.00019285,2]
[367212339,1750702448658,5000.0,0.0001911,2]
[367212340,1750702464305,5000.0,0.0001911,2]
[367212341,1750702475278,2087.1298384,0.00018481,2]
[367212342,1750702480556,4388.0,0.0001911,2]
[367212343,1750702496009,5000.0,0.0001911,2]
[367212344,1750702508031,220.9972,0.00013699,2]
[367212345,1750702511410,2179.16389234,0.0001911,2]
[367212347,1750702541326,160.0,0.0001911,2]
[367212351,1750702704536,10000.0,0.00018481,2]
[367212352,1750702730102,24900.0,0.00018381,2]
[367212353,1750702775780,-1921.6,0.00023,15]
[367212354,1750702813054,649.6655616,0.00018481,2]
[367212355,1750703007355,5000.0,0.0001911,2]
[367212357,1750703126662,3301.84523615,0.0001911,2]
[367212359,1750703134465,1061.793057,0.00018373,2]
[367212360,1750703196959,-733.69581145,0.00019274,2]
[367212361,1750703210611,-242.98582319,0.00019285,2]
[367212362,1750703210636,-8194.01417681,0.00019288,2]
[367212363,1750703220774,582.9941423,0.00018372,2]
[367212364,1750703224074,318.2768055,0.00018378,2]
[367212367,1750703245154,-1259.72235184,0.00019288,2]
[367212368,1750703245174,-300.0,0.00019365,2]
[367212369,1750703245194,-65.43958509,0.00019366,2]
[367212370,1750703301530,309.98879157,0.0001911,2]
[367212373,1750703366180,-347.5,0.00019366,3]
[367212374,1750703366199,-31.45046266,0.00019366,3]
[367212378,1750703381904,-793.71318755,0.00019178,2]
[367212379,1750703389636,1801.0,0.0001911,2]
[367212380,1750703394162,-187.918352,0.00019178,2]
[367212385,1750703404833,187.918352,0.0001911,2]
[367212386,1750703418859,-165.1568582,0.00019178,2]
[367212398,1750703432365,-1423.69795475,0.00019178,2]
[367212399,1750703432374,-250.872801,0.00019178,2]
[367212400,1750703432385,-223.54455735,0.00019266,2]
[367212401,1750703432395,-1688.0,0.00019363,2]
[367212402,1750703432404,-207.4,0.00019363,2]
[367212403,1750703432414,-733.21,0.00019363,3]
[367212404,1750703432424,-1200.0,0.00019365,2]
[367212405,1750703432434,-488.79,0.00019366,3]
[367212406,1750703432444,-244.39,0.00019366,3]
[367212407,1750703432454,-118.35041491,0.00019366,2]
[367212408,1750703432463,-1017.90801922,0.00019366,2]
[367212409,1750703432473,-160.0,0.00019366,2]
[367212410,1750703432482,-151.0,0.0001937,2]
[367212411,1750703432492,-25000.0,0.0001937,2]
[367212412,1750703432501,-156.587,0.0001937,2]
[367212413,1750703432511,-22111.36180791,0.0001937,2]
[367212414,1750703432521,-500.0,0.0001937,2]
[367212415,1750703432530,-500.0,0.0001937,2]
[367212416,1750703432540,-500.0,0.0001937,2]
[367212417,1750703432550,-500.0,0.0001937,2]
[367212418,1750703432561,-500.0,0.0001937,2]
[367212419,1750703432571,-500.0,0.0001937,2]
[367212420,1750703432581,-500.0,0.0001937,2]
[367212421,1750703432590,-151.0,0.0001937,2]
[367212422,1750703432599,-500.0,0.0001937,2]
[367212423,1750703432609,-500.0,0.0001937,2]
[367212424,1750703432621,-151.0,0.0001937,2]
[367212425,1750703432631,-500.0,0.0001937,2]
[367212426,1750703432641,-500.0,0.0001937,2]
[367212427,1750703432651,-151.0,0.0001937,2]
[367212428,1750703432660,-500.0,0.0001937,2]
[367212429,1750703432671,-151.0,0.0001937,2]
[367212430,1750703432681,-500.0,0.0001937,2]
[367212431,1750703432691,-151.0,0.0001937,2]
[367212432,1750703432702,-500.0,0.0001937,2]
[367212433,1750703432713,-500.0,0.0001937,2]
[367212434,1750703432722,-284.18889448,0.0001937,2]
[367212435,1750703432732,-500.0,0.0001937,2]
[367212436,1750703432742,-500.0,0.0001937,2]
[367212437,1750703432756,-500.0,0.0001937,2]
[367212438,1750703432766,-500.0,0.0001937,2]
[367212439,1750703432775,-500.0,0.0001937,2]
[367212440,1750703432785,-500.0,0.0001937,2]
[367212441,1750703432795,-500.0,0.0001937,2]
[367212442,1750703432805,-151.0,0.0001937,2]
[367212443,1750703432815,-151.0,0.0001937,2]
[367212444,1750703432825,-286.95631685,0.0001937,2]
[367212445,1750703432835,-183.79,0.00019371,2]
[367212446,1750703432844,-300.0,0.00019371,2]
[367212447,1750703432854,-300.0,0.00019371,2]
[367212448,1750703432864,-300.0,0.00019371,2]
[367212449,1750703432873,-300.0,0.00019371,2]
[367212450,1750703432883,-500.0,0.00019372,2]
[367212451,1750703432893,-500.0,0.00019372,2]
[367212452,1750703432903,-500.0,0.00019372,2]
[367212453,1750703432912,-500.0,0.00019372,2]
[367212454,1750703432922,-500.0,0.00019372,2]
[367212455,1750703432931,-500.0,0.00019372,2]
[367212456,1750703432941,-645.0,0.00019372,2]
[367212457,1750703432951,-500.0,0.00019372,2]
[367212458,1750703432961,-500.0,0.00019372,2]
[367212459,1750703432971,-500.0,0.00019372,2]
[367212460,1750703432980,-500.0,0.00019372,2]
[367212461,1750703432990,-500.0,0.00019372,2]
[367212462,1750703433000,-500.0,0.00019372,2]
[367212463,1750703433010,-500.0,0.00019372,2]
[367212464,1750703433020,-500.0,0.00019372,2]
[367212465,1750703433030,-500.0,0.00019372,2]
[367212466,1750703433040,-500.0,0.00019372,2]
[367212467,1750703433051,-500.0,0.00019372,2]
[367212468,1750703433061,-500.0,0.00019372,2]
[367212469,1750703433071,-500.0,0.00019372,2]
[367212470,1750703433083,-500.0,0.00019372,2]
[367212471,1750703433093,-500.0,0.00019372,2]
[367212472,1750703433103,-500.0,0.00019372,2]
[367212473,1750703433113,-500.0,0.00019372,2]
[367212474,1750703433123,-500.0,0.00019372,2]
[367212475,1750703433133,-500.0,0.00019372,2]
[367212476,1750703433142,-500.0,0.00019372,2]
[367212477,1750703433152,-500.0,0.00019372,2]
[367212478,1750703433161,-500.0,0.00019372,2]
[367212479,1750703433170,-500.0,0.00019372,2]
[367212480,1750703433179,-500.0,0.00019372,2]
[367212481,1750703433188,-500.0,0.00019372,2]
[367212482,1750703433198,-500.0,0.00019372,2]
[367212483,1750703433210,-500.0,0.00019372,2]
[367212484,1750703433220,-500.0,0.00019372,2]
[367212485,1750703433230,-500.0,0.00019372,2]
[367212486,1750703433240,-500.0,0.00019372,2]
[367212487,1750703433249,-500.0,0.00019372,2]
[367212488,1750703433259,-500.0,0.00019372,2]
[367212489,1750703433556,-232.6828894,0.00019372,2]
[367212490,1750703433567,-500.0,0.00019372,2]
[367212491,1750703433578,-500.0,0.00019372,2]
[367212492,1750703433588,-500.0,0.00019372,2]
[367212493,1750703433598,-155.47437558,0.00019372,2]
[367212494,1750703433609,-543.19020973,0.00019372,2]
[367212495,1750703433622,-500.0,0.00019372,2]
[367212496,1750703433632,-500.0,0.00019372,2]
[367212497,1750703433642,-500.0,0.00019372,2]
[367212498,1750703433652,-500.0,0.00019372,2]
[367212499,1750703433662,-500.0,0.00019372,2]
[367212500,1750703433672,-500.0,0.00019372,2]
[367212501,1750703433683,-500.0,0.00019372,2]
[367212502,1750703433694,-367.49896234,0.00019372,2]
[367212503,1750703433704,-500.0,0.00019372,2]
[367212504,1750703433715,-500.0,0.00019372,2]
[367212505,1750703433725,-500.0,0.00019372,2]
[367212506,1750703433735,-500.0,0.00019372,2]
[367212507,1750703433745,-500.0,0.00019372,2]
[367212508,1750703433755,-500.0,0.00019372,2]
[367212509,1750703433765,-472.35761085,0.00019372,2]
[367212510,1750703433775,-500.0,0.00019372,2]
[367212511,1750703433785,-500.0,0.00019372,2]
[367212512,1750703433795,-500.0,0.00019372,2]
[367212513,1750703433804,-303.63143215,0.00019372,2]
[367212514,1750703433815,-299.99999999,0.00019372,2]
[367212515,1750703433825,-460.0,0.00019372,2]
[367212516,1750703433835,-460.0,0.00019372,2]
[367212517,1750703433846,-556.5,0.00019372,2]
[367212518,1750703433857,-437.11489043,0.00019372,2]
[367212519,1750703433867,-365.24192339,0.00019372,2]
[367212520,1750703433879,-4412.07,0.00019372,2]
[367212521,1750703433889,-460.0,0.00019372,2]
[367212522,1750703433898,-466.68159162,0.00019372,2]
[367212523,1750703433908,-460.0,0.00019372,2]
[367212524,1750703433918,-460.0,0.00019372,2]
[367212525,1750703433928,-460.0,0.00019372,2]
[367212526,1750703433938,-1000.0,0.00019372,2]
[367212527,1750703433948,-460.0,0.00019372,2]
[367212528,1750703433958,-460.0,0.00019372,2]
[367212529,1750703433968,-460.0,0.00019372,2]
[367212530,1750703433978,-460.0,0.00019372,2]
[367212531,1750703433989,-460.0,0.00019372,2]
[367212532,1750703433999,-631.6,0.00019372,2]
[367212533,1750703434009,-460.0,0.00019373,2]
[367212534,1750703434020,-460.0,0.00019373,2]
[367212535,1750703434030,-460.0,0.00019373,2]
[367212536,1750703434040,-667.27,0.00019373,2]
[367212537,1750703434050,-639.47,0.00019373,2]
[367212538,1750703434060,-179.2834103,0.00019373,2]
[367212539,1750703434070,-433.86001516,0.00019373,2]
[367212540,1750703434080,-460.0,0.00019373,2]
[367212541,1750703434090,-460.0,0.00019373,2]
[367212542,1750703434099,-460.0,0.00019373,2]
[367212543,1750703434108,-460.0,0.00019373,2]
[367212544,1750703434118,-460.0,0.00019373,2]
[367212545,1750703434129,-460.0,0.00019373,2]
[367212546,1750703434141,-460.0,0.00019373,2]
[367212547,1750703434151,-460.0,0.00019373,2]
[367212548,1750703434160,-460.0,0.00019373,2]
[367212549,1750703434170,-460.0,0.00019373,2]
[367212550,1750703434180,-460.0,0.00019373,2]
[367212551,1750703434191,-400.0,0.00019373,2]
[367212552,1750703434201,-480.99,0.00019373,2]
[367212553,1750703434210,-480.99,0.00019373,2]
[367212554,1750703434220,-460.0,0.00019373,2]
[367212555,1750703434230,-460.0,0.00019373,2]
[367212556,1750703434240,-460.0,0.00019373,2]
[367212557,1750703434250,-460.0,0.00019373,2]
[367212558,1750703434259,-460.0,0.00019373,2]
[367212559,1750703434270,-460.0,0.00019373,2]
[367212560,1750703434279,-460.0,0.00019373,2]
[367212561,1750703434289,-460.0,0.00019373,2]
[367212562,1750703434298,-622.89,0.00019373,2]
[367212563,1750703434308,-245.33,0.00019374,3]
[367212564,1750703434318,-1105.25725141,0.00019375,2]
[367212565,1750703434328,-1105.25725141,0.00019375,2]
[367212566,1750703434337,-1105.25725141,0.00019375,2]
[367212567,1750703434347,-500.0,0.00019375,2]
[367212568,1750703434357,-1105.25725141,0.00019375,2]
[367212569,1750703434367,-1105.25725141,0.00019375,2]
[367212570,1750703434377,-1105.25725141,0.00019375,2]
[367212571,1750703434390,-465.61923004,0.00019376,2]
[367212572,1750703434400,-460.0,0.00019376,2]
[367212573,1750703434409,-460.0,0.00019376,2]
[367212574,1750703434419,-460.0,0.00019376,2]
[367212575,1750703434428,-460.0,0.00019376,2]